lending/lending_fUSD_20251016
["ID","MTS","AMOUNT","RATE_DAILY","PERIOD"]
[391557925,1760652645940,-303.478001,0.00029287,30]
[391557926,1760652645949,-303.478001,0.00029287,30]
[391557927,1760652645958,-303.478001,0.00029287,30]
[391557928,1760652645968,-161.65725691,0.00029289,15]
[391557929,1760652645977,-180.52922052,0.00029294,2]
[391557930,1760652645987,-2729.7,0.00029308,120]
[391557931,1760652645996,-1092.0,0.00029315,60]
[391557932,1760652646006,-297.1488855,0.00029324,2]
[391557933,1760652646016,-374.0,0.00029332,2]
[391557934,1760652646025,-168.0,0.00029334,2]
[391557935,1760652646035,-2729.7,0.00029336,120]
[391557936,1760652646044,-1000.0,0.00029344,2]
[391557937,1760652646054,-200.0,0.00029355,2]
[391557938,1760652646063,-200.0,0.00029355,2]
[391557939,1760652646073,-200.0,0.00029355,2]
[391557940,1760652646082,-200.0,0.00029355,2]
[391557941,1760652646091,-200.0,0.00029356,2]
[391557942,1760652646101,-1000.0,0.00029358,2]
[391557943,1760652646110,-200.0,0.00029358,2]
[391557944,1760652646119,-2729.7,0.00029363,120]
[391557945,1760652646129,-523.12,0.00029369,12]
[391557946,1760652646139,-170.10593366,0.0002937,2]
[391557947,1760652646148,-1092.0,0.0002937,60]
[391557948,1760652646158,-200.0,0.00029373,2]
[391557949,1760652646167,-200.0,0.00029373,2]
[391557950,1760652646176,-200.0,0.00029373,2]
[391557951,1760652646186,-200.0,0.00029373,2]
[391557952,1760652646195,-150.0,0.00029382,120]
[391557953,1760652646204,-2729.7,0.0002939,120]
[391557954,1760652646213,-2729.7,0.00029418,120]
[391557955,1760652646224,-1092.0,0.00029425,60]
[391557956,1760652646233,-152.0,0.00029431,3]
[391557957,1760652646243,-5269.14721479,0.00029441,2]
[391557958,1760652646254,-2729.7,0.00029445,120]
[391557959,1760652646263,-151.0,0.00029452,30]
[391557960,1760652646273,-151.0,0.00029452,30]
[391557961,1760652646284,-151.0,0.00029452,30]
[391557962,1760652646295,-151.0,0.00029452,30]
[391557963,1760652646304,-151.0,0.00029452,30]
[391557964,1760652646314,-151.0,0.00029452,30]
[391557965,1760652646323,-151.0,0.00029452,30]
[391557966,1760652646333,-151.0,0.00029452,30]
[391557967,1760652646346,-209.689649,0.00029452,30]
[391557968,1760652646356,-209.689649,0.00029452,30]
[391557969,1760652646366,-209.689649,0.00029452,30]
[391557970,1760652646375,-209.689649,0.00029452,30]
[391557971,1760652646385,-13596.0,0.00029452,2]
[391557972,1760652646396,-374.0,0.00029463,7]
[391557973,1760652646405,-374.0,0.00029469,2]
[391557974,1760652646416,-2729.7,0.00029473,120]
[391557975,1760652646426,-170.10593366,0.00029479,2]
[391557976,1760652646436,-1092.0,0.0002948,60]
[391557977,1760652646447,-439.02374335,0.00029483,2]
[391557978,1760652646456,-151.0,0.00029487,30]
[391557979,1760652646466,-151.0,0.00029487,30]
[391557980,1760652646476,-151.0,0.00029487,30]
[391557981,1760652646485,-151.0,0.00029487,30]
[391557982,1760652646495,-151.0,0.00029487,30]
[391557983,1760652646504,-151.0,0.00029487,30]
[391557984,1760652646514,-151.0,0.00029487,30]
[391557985,1760652646523,-151.0,0.00029487,30]
[391557986,1760652646533,-236.1522,0.00029487,30]
[391557987,1760652646544,-307.6442989,0.00029488,2]
[391557988,1760652646554,-47736.64223258,0.00029488,2]
[391557989,1760652646563,-151.0,0.00029489,30]
[391557990,1760652646572,-151.0,0.00029489,30]
[391557991,1760652646582,-151.0,0.00029489,30]
[391557992,1760652646591,-151.0,0.00029489,30]
[391557994,1760652646601,-151.0,0.00029489,30]
[391557995,1760652646610,-151.0,0.00029489,30]
[391557996,1760652646619,-151.0,0.00029489,30]
[391557998,1760652646628,-151.0,0.00029489,30]
[391558000,1760652646638,-151.0,0.00029489,30]
[391558002,1760652646647,-1000.0,0.00029499,2]
[391558005,1760652646657,-230643.36592445,0.000295,2]
[391558006,1760652646666,-34243.96,0.000295,7]
[391558007,1760652646676,-151.0,0.000295,30]
[391558008,1760652646686,-151.0,0.000295,30]
[391558009,1760652646695,-152.233256,0.000295,30]
[391558010,1760652646704,-151.0,0.000295,30]
[391558011,1760652646714,-151.0,0.000295,30]
[391558012,1760652646724,-858.116865,0.000295,30]
[391558013,1760652646733,-151.0,0.000295,30]
[391558014,1760652646742,-858.116865,0.000295,30]
[391558015,1760652646752,-858.116865,0.000295,30]
[391558016,1760652646761,-858.116865,0.000295,30]
[391558017,1760652646770,-572.797798,0.000295,30]
[391558018,1760652646779,-572.797798,0.000295,30]
[391558019,1760652646788,-572.797798,0.000295,30]
[391558020,1760652646798,-572.797798,0.000295,30]
[391558021,1760652646807,-151.0,0.000295,15]
[391558022,1760652646816,-151.0,0.000295,15]
[391558023,1760652646834,-151.0,0.000295,15]
[391558024,1760652646844,-151.0,0.000295,30]
[391558025,1760652646855,-151.0,0.000295,30]
[391558026,1760652646864,-151.0,0.000295,30]
[391558027,1760652646874,-241.535774,0.000295,30]
[391558028,1760652646883,-151.0,0.000295,30]
[391558029,1760652646895,-151.0,0.000295,30]
[391558030,1760652646904,-224.284007,0.000295,30]
[391558031,1760652646914,-151.0,0.000295,30]
[391558032,1760652646923,-301.99999931,0.000295,30]
[391558033,1760652646933,-151.0,0.000295,30]
[391558034,1760652646942,-151.0,0.000295,30]
[391558035,1760652646952,-151.0,0.000295,30]
[391558036,1760652646963,-151.0,0.000295,30]
[391558037,1760652646974,-703.879859,0.000295,30]
[391558038,1760652646984,-703.879859,0.000295,30]
[391558039,1760652646993,-703.879859,0.000295,30]
[391558040,1760652647002,-151.0,0.000295,30]
[391558041,1760652647011,-703.879859,0.000295,30]
[391558042,1760652647020,-151.0,0.000295,30]
[391558043,1760652647030,-254.24403494,0.000295,30]
[391558044,1760652647040,-151.0,0.000295,30]
[391558045,1760652647050,-151.0,0.000295,30]
[391558046,1760652647064,-151.0,0.000295,14]
[391558047,1760652647073,-151.0,0.000295,30]
[391558048,1760652647085,-151.0,0.000295,30]
[391558049,1760652647096,-151.0,0.000295,30]
[391558050,1760652647108,-151.0,0.000295,30]
[391558051,1760652647120,-151.0,0.000295,30]
[391558052,1760652647130,-159.980502,0.000295,30]
[391558053,1760652647139,-159.980502,0.000295,30]
[391558054,1760652647148,-159.980502,0.000295,30]
[391558055,1760652647158,-159.980502,0.000295,30]
[391558056,1760652647167,-236.398538,0.000295,30]
[391558057,1760652647177,-236.398538,0.000295,30]
[391558058,1760652647186,-236.398538,0.000295,30]
[391558059,1760652647196,-236.398538,0.000295,30]
[391558060,1760652647206,-151.0,0.000295,30]
[391558061,1760652647215,-151.0,0.000295,30]
[391558062,1760652647226,-151.0,0.000295,30]
[391558063,1760652647235,-151.0,0.000295,30]
[391558064,1760652647245,-151.0,0.000295,30]
[391558065,1760652647255,-259.494128,0.000295,30]
[391558066,1760652647264,-151.0,0.000295,30]
[391558067,1760652647275,-151.0,0.000295,30]
[391558068,1760652647284,-151.0,0.000295,30]
[391558069,1760652647293,-151.0,0.000295,30]
[391558070,1760652647303,-151.0,0.000295,30]
[391558071,1760652647313,-151.0,0.000295,30]
[391558072,1760652647323,-151.0,0.000295,30]
[391558073,1760652647414,-759.346239,0.000295,30]
[391558074,1760652647426,-151.0,0.000295,30]
[391558075,1760652647436,-1500.0,0.000295,2]
[391558076,1760652647445,-151.0,0.000295,30]
[391558077,1760652647454,-759.346239,0.000295,30]
[391558078,1760652647463,-151.0,0.000295,30]
[391558079,1760652647472,-151.0,0.000295,30]
[391558080,1760652647482,-151.0,0.000295,30]
[391558081,1760652647491,-759.346239,0.000295,30]
[391558082,1760652647500,-759.346239,0.000295,30]
[391558083,1760652647509,-151.0,0.000295,30]
[391558084,1760652647518,-151.0,0.000295,30]
[391558085,1760652647528,-151.0,0.000295,30]
[391558086,1760652647537,-151.0,0.000295,30]
[391558087,1760652647546,-187.201677,0.000295,30]
[391558088,1760652647555,-151.0,0.000295,30]
[391558089,1760652647564,-151.0,0.000295,30]
[391558090,1760652647574,-151.0,0.000295,10]
[391558091,1760652647583,-151.0,0.000295,30]
[391558092,1760652647592,-151.0,0.000295,30]
[391558093,1760652647601,-151.0,0.000295,30]
[391558094,1760652647610,-151.0,0.000295,30]
[391558095,1760652647619,-194.438803,0.000295,30]
[391558096,1760652647628,-194.438803,0.000295,30]
[391558097,1760652647637,-151.0,0.000295,30]
[391558098,1760652647646,-194.438803,0.000295,30]
[391558099,1760652647655,-194.438803,0.000295,30]
[391558100,1760652647665,-151.0,0.000295,30]
[391558101,1760652647675,-151.0,0.000295,30]
[391558102,1760652647684,-151.0,0.000295,30]
[391558103,1760652647694,-151.0,0.000295,30]
[391558104,1760652647703,-151.0,0.000295,30]
[391558105,1760652647713,-151.0,0.000295,30]
[391558106,1760652647724,-224.461035,0.000295,30]
[391558107,1760652647734,-159.738078,0.000295,30]
[391558108,1760652647743,-661.653996,0.000295,30]
[391558109,1760652647753,-159.738078,0.000295,30]
[391558110,1760652647763,-151.0,0.000295,30]
[391558111,1760652647772,-661.653996,0.000295,30]
[391558112,1760652647782,-661.653996,0.000295,30]
[391558113,1760652647791,-159.738078,0.000295,30]
[391558114,1760652647800,-661.653996,0.000295,30]
[391558115,1760652647809,-151.0,0.000295,30]
[391558116,1760652647818,-159.738078,0.000295,30]
[391558117,1760652647827,-2729.7,0.000295,120]
[391558118,1760652647836,-151.0,0.000295,30]
[391558119,1760652647846,-2364.0,0.00029505,2]
[391558120,1760652647855,-2729.7,0.00029527,120]
[391558121,1760652647864,-150.0,0.00029533,120]
[391558122,1760652647874,-1092.0,0.00029534,60]
[391558123,1760652647883,-168.0,0.00029539,2]
[391558124,1760652647893,-500.0,0.00029546,15]
[391558125,1760652647902,-714.26,0.00029546,15]
[391558126,1760652647912,-2729.7,0.00029555,120]
[391558127,1760652647921,-150.0,0.00029566,120]
[391558128,1760652647930,-168.0,0.00029578,2]
[391558129,1760652647939,-2729.7,0.00029582,120]
[391558130,1760652647949,-1092.0,0.00029589,60]
[391558131,1760652647958,-150.0,0.00029609,120]
[391558132,1760652647967,-2729.76476184,0.0002961,120]
[391558133,1760652647977,-1000.0,0.00029616,2]
[391558134,1760652647987,-170.10593366,0.00029616,2]
[391558135,1760652647996,-374.0,0.00029616,2]
[391558136,1760652648006,-374.0,0.00029622,2]
[391558137,1760652648016,-413.59063,0.00029627,30]
[391558138,1760652648026,-1144.88415035,0.0002963,12]
[391558139,1760652648035,-161.65725691,0.00029637,15]
[391558140,1760652648044,-523.12,0.00029643,13]
[391558141,1760652648054,-1092.0,0.00029644,60]
[391558142,1760652648063,-1092.0,0.00029699,60]
[391558143,1760652648072,-2366.0,0.00029699,2]
[391558144,1760652648082,-3978.17,0.000297,2]
[391558145,1760652648091,-3968.39,0.000297,7]
[391558146,1760652648100,-170.10593366,0.00029726,2]
[391558147,1760652648110,-5269.14721479,0.00029751,2]
[391558148,1760652648120,-1092.0,0.00029754,60]
[391558149,1760652648130,-180.52922052,0.00029757,2]
[391558150,1760652648139,-439.02374335,0.0002978,2]
[391558151,1760652648148,-206.18902,0.0002978,30]
[391558152,1760652648158,-206.18902,0.0002978,30]
[391558153,1760652648168,-301.999999,0.0002978,30]
[391558154,1760652648177,-206.18902,0.0002978,30]
[391558155,1760652648186,-206.18902,0.0002978,30]
[391558156,1760652648195,-176.806935,0.0002978,30]
[391558157,1760652648204,-151.0,0.0002978,30]
[391558158,1760652648213,-176.806935,0.0002978,30]
[391558159,1760652648223,-176.806935,0.0002978,30]
[391558160,1760652648232,-176.806935,0.0002978,30]
[391558161,1760652648241,-191.874591,0.0002978,30]
[391558162,1760652648251,-191.874591,0.0002978,30]
[391558163,1760652648260,-191.874591,0.0002978,30]
[391558164,1760652648269,-191.874591,0.0002978,30]
[391558165,1760652648278,-177.657138,0.0002978,30]
[391558166,1760652648287,-1000.0,0.0002978,2]
[391558167,1760652648297,-5790.2943105,0.00029782,2]
[391558168,1760652648306,-788.89146726,0.00029791,2]
[391558169,1760652648315,-30068.35944273,0.00029792,2]
[391558170,1760652648324,-14337.63781347,0.00029802,2]
[391558171,1760652648334,-1000.0,0.00029806,120]
[391558172,1760652648346,-1000.0,0.00029806,120]
[391558173,1760652648356,-1000.0,0.00029806,120]
[391558174,1760652648364,-1000.0,0.00029806,120]
[391558175,1760652648374,-80726.45071109,0.00029808,2]
[391558176,1760652648384,-1092.0,0.00029808,60]
[391558177,1760652648394,-151.0,0.0002981,30]
[391558178,1760652648403,-200.542752,0.0002981,30]
[391558179,1760652648417,-200.542752,0.0002981,30]
[391558180,1760652648427,-200.542752,0.0002981,30]
[391558181,1760652648436,-200.542752,0.0002981,30]
[391558182,1760652648446,-151.0,0.0002981,30]
[391558183,1760652648455,-151.0,0.0002981,30]
[391558184,1760652648465,-303.478001,0.0002981,30]
[391558185,1760652648475,-303.478001,0.0002981,30]
[391558186,1760652648485,-303.478001,0.0002981,30]
[391558187,1760652648495,-303.478001,0.0002981,30]
[391558188,1760652648504,-21257.97551832,0.0002981,2]
[391558189,1760652648513,-500.0,0.0002982,15]
[391558190,1760652648523,-754.28688892,0.00029824,2]
[391558191,1760652648532,-170.10593366,0.00029836,2]
[391558192,1760652648542,-80726.45071109,0.00029847,2]
[391558193,1760652648551,-468.83,0.00029863,90]
[391558194,1760652648561,-1092.0,0.00029863,60]
[391558195,1760652648570,-307.6442989,0.00029886,2]
[391558196,1760652648579,-374.0,0.00029886,2]
[391558197,1760652648589,-13434.16393732,0.00029889,2]
[391558198,1760652648597,-14337.63781347,0.0002989,2]
[391558199,1760652648607,-754.28688892,0.00029893,2]
[391558200,1760652648616,-14337.63781347,0.00029893,2]
[391558201,1760652648625,-30068.35944273,0.00029899,2]
[391558202,1760652648635,-200.0,0.000299,2]
[391558203,1760652648644,-2000.0,0.00029901,120]
[391558204,1760652648653,-584355.57032611,0.00029907,2]
[391558205,1760652648662,-2313.0,0.00029909,2]
[391558206,1760652648671,-80726.45071109,0.00029911,2]
[391558207,1760652648680,-13434.16393732,0.00029913,2]
[391558208,1760652648689,-523.12,0.00029917,14]
[391558209,1760652648699,-1092.0,0.00029918,60]
[391558210,1760652648709,-14337.63781347,0.0002992,2]
[391558211,1760652648718,-80726.45071109,0.00029932,2]
[391558212,1760652648728,-584355.57032611,0.00029934,2]
[391558213,1760652648737,-13434.16393732,0.00029936,2]
[391558214,1760652648746,-30068.35944273,0.00029939,2]
[391558215,1760652648756,-754.28688892,0.00029944,2]
[391558216,1760652648765,-170.10593366,0.00029945,2]
[391558217,1760652648775,-150.0,0.00029948,120]
[391558218,1760652648784,-30068.35944273,0.0002995,2]
[391558219,1760652648794,-584355.57032611,0.00029951,2]
[391558220,1760652648803,-754.28688892,0.00029956,2]
[391558221,1760652648812,-584355.57032611,0.00029963,2]
[391558222,1760652648822,-13434.16393732,0.00029965,2]
[391558223,1760652648831,-150.0,0.00029973,5]
[391558224,1760652648841,-1092.0,0.00029973,60]
[391558225,1760652648850,-500.0,0.0002998,120]
[391558226,1760652648859,-1476.32,0.0002998,120]
[391558227,1760652648869,-500.0,0.0002998,120]
[391558228,1760652648878,-500.0,0.0002998,30]
[391558229,1760652648888,-500.0,0.0002998,120]
[391558230,1760652648897,-500.0,0.0002998,120]
[391558231,1760652648907,-500.0,0.0002998,120]
[391558232,1760652648916,-161.65725691,0.00029985,15]
[391558233,1760652648925,-151.0,0.00029987,30]
[391558234,1760652648934,-151.0,0.00029987,30]
[391558235,1760652648943,-166.412147,0.00029987,30]
[391558236,1760652648951,-209.689649,0.00029987,30]
[391558237,1760652648960,-209.689649,0.00029987,30]
[391558238,1760652648970,-209.689649,0.00029987,30]
[391558239,1760652648979,-209.689649,0.00029987,30]
[391558240,1760652648988,-1476.32,0.00029989,120]
[391558241,1760652648997,-174.96,0.00029989,120]
[391558242,1760652649006,-305.52700203,0.00029989,30]
[391558243,1760652649015,-500.0,0.00029989,120]
[391558244,1760652649024,-500.0,0.00029989,120]
[391558245,1760652649033,-501.81,0.00029989,120]
[391558246,1760652649042,-1000.0,0.00029989,2]
[391558247,1760652649052,-1000.0,0.00029999,10]
[391558248,1760652649060,-1476.32,0.00029999,120]
[391558249,1760652649070,-1476.32,0.00029999,120]
[391558250,1760652649079,-1476.32,0.00029999,120]
[391558251,1760652649088,-1476.32,0.00029999,120]
[391558252,1760652649098,-1476.32,0.00029999,120]
[391558253,1760652649106,-500.0,0.00029999,120]
[391558254,1760652649115,-500.0,0.00029999,120]
[391558255,1760652649124,-500.0,0.00029999,120]
[391558256,1760652649133,-500.0,0.00029999,120]
[391558257,1760652649142,-500.0,0.00029999,120]
[391558258,1760652649151,-649.87443744,0.00029999,120]
[391558259,1760652649160,-500.0,0.00029999,2]
[391558260,1760652649169,-500.0,0.00029999,2]
[391558261,1760652649179,-271.96391158,0.00029999,2]
[391558262,1760652649188,-187.81095573,0.00029999,2]
[391558263,1760652649197,-500.0,0.00029999,2]
[391558264,1760652649206,-475.08064257,0.00029999,2]
[391558265,1760652649215,-296.58113328,0.00029999,2]
[391558266,1760652649227,-666.0,0.00029999,10]
[391558267,1760652649236,-151.0,0.00029999,30]
[391558268,1760652649245,-151.0,0.00029999,30]
[391558269,1760652649255,-151.0,0.00029999,30]
[391558270,1760652649264,-151.0,0.00029999,30]
[391558271,1760652649273,-800.0,0.0003,3]
[391558272,1760652649282,-2000.0,0.0003,14]
[391558273,1760652649291,-12487.98313881,0.0003,13]
[391558274,1760652649301,-300.0,0.0003,2]
[391558275,1760652649310,-300.0,0.0003,2]
[391558276,1760652649320,-300.0,0.0003,2]
[391558277,1760652649329,-342.82536255,0.0003,2]
[391558278,1760652649339,-19531.21918141,0.0003,2]
[391558279,1760652649350,-1784.70478617,0.0003,2]
[391558280,1760652649359,-300.32248367,0.0003,2]
[391558281,1760652649368,-400.0,0.0003,20]
[391558282,1760652649379,-176588.18242973,0.0003,5]
[391558283,1760652649388,-1000.0,0.0003,2]
[391558284,1760652649398,-603.49511305,0.0003,2]
[391558285,1760652649408,-266979.90216252,0.0003,7]
[391558286,1760652649418,-620.59201341,0.0003,30]
[391558287,1760652649427,-427.4580794,0.0003,30]
[391558288,1760652649437,-252.31632919,0.0003,30]
[391558289,1760652649446,-300.0,0.0003,30]
[391558290,1760652649455,-163.0,0.0003,4]
[391558291,1760652649464,-476.66201743,0.0003,30]
[391558292,1760652649474,-296.72741134,0.0003,30]
[391558293,1760652649483,-400.0,0.0003,30]
[391558294,1760652649492,-1000.0,0.0003,10]
[391558295,1760652649502,-1000.0,0.0003,9]
[391558296,1760652649511,-1000.0,0.0003,10]
[391558297,1760652649519,-1000.0,0.0003,10]
[391558298,1760652649528,-301.88,0.0003,2]
[391558299,1760652649537,-500.0,0.0003,2]
[391558300,1760652649546,-1000.0,0.0003,21]
[391558301,1760652649555,-4000.0,0.0003,3]
[391558302,1760652649564,-1018.36445774,0.0003,30]
[391558303,1760652649573,-2030.0,0.0003,10]
[391558304,1760652649582,-896.9717775,0.0003,30]
[391558305,1760652649591,-208.0,0.0003,120]
[391558306,1760652649600,-1106.28897076,0.0003,120]
[391558307,1760652649609,-281.31897304,0.0003,120]
[391558308,1760652649618,-741.94096334,0.0003,120]
[391558309,1760652649628,-294.46816715,0.0003,120]
[391558310,1760652649637,-2832.22393627,0.0003,120]
[391558311,1760652649646,-2310.98195343,0.0003,120]
[391558312,1760652649656,-200.0,0.0003,120]
[391558313,1760652649665,-703.48985633,0.0003,120]
[391558314,1760652649674,-615.45888216,0.0003,120]
[391558315,1760652649683,-2825.62522189,0.0003,120]
[391558316,1760652649692,-1325.89012872,0.0003,120]
[391558317,1760652649702,-161.06943571,0.0003,120]
[391558318,1760652649711,-344.9045641,0.0003,120]
[391558319,1760652649720,-1000.0,0.0003,120]
[391558320,1760652649729,-1062.89547234,0.0003,2]
[391558321,1760652649739,-815.0,0.0003,2]
[391558322,1760652649748,-158.38017351,0.0003,3]
[391558323,1760652649757,-300.0,0.0003,120]
[391558324,1760652649766,-981.0,0.0003,7]
[391558325,1760652649775,-600.0,0.0003,120]
[391558326,1760652649783,-600.0,0.0003,120]
[391558327,1760652649792,-200.0,0.0003,120]
[391558328,1760652649801,-1635.8302398,0.0003,120]
[391558329,1760652649810,-400.0,0.0003,120]
[391558330,1760652649820,-166.0,0.0003,120]
[391558331,1760652649830,-520.0,0.0003,60]
[391558332,1760652649839,-1459.370868,0.0003,120]
[391558333,1760652649848,-2000.0,0.0003,120]
[391558334,1760652649857,-1806.7880525,0.0003,120]
[391558335,1760652649866,-790.90920493,0.0003,3]
[391558336,1760652649876,-2735.27099661,0.0003,120]
[391558337,1760652649885,-410.0,0.0003,60]
[391558338,1760652649894,-570.95570537,0.0003,60]
[391558339,1760652649903,-59459.45824347,0.0003,30]
[391558340,1760652649912,-2702.40886445,0.0003,30]
[391558341,1760652649921,-259.43653755,0.0003,30]
[391558342,1760652649930,-1811.72167185,0.0003,120]
[391558343,1760652649939,-151.0,0.0003,2]
[391558344,1760652649948,-151.0,0.0003,5]
[391558345,1760652649957,-151.0,0.0003,7]
[391558346,1760652649967,-1000.000001,0.0003,120]
[391558347,1760652649977,-1000.0,0.0003,60]
[391558348,1760652649987,-1000.0,0.0003,30]
[391558349,1760652649995,-362.97668571,0.0003,30]
[391558350,1760652650005,-416.427397,0.0003,60]
[391558351,1760652650014,-529.49475097,0.0003,7]
[391558352,1760652650023,-10136.88643381,0.0003,2]
[391558353,1760652650032,-165.0,0.0003,14]
[391558354,1760652650041,-1273.12980658,0.0003,10]
[391558355,1760652650051,-1000.0,0.0003,120]
[391558356,1760652650059,-199636.55672754,0.0003,2]
[391558357,1760652650068,-34243.96,0.0003,7]
[391558358,1760652650077,-151.0,0.0003,30]
[391558359,1760652650086,-151.0,0.0003,30]
[391558360,1760652650095,-151.0,0.0003,30]
[391558361,1760652650104,-151.0,0.0003,30]
[391558362,1760652650113,-151.0,0.0003,30]
[391558363,1760652650122,-152.80205,0.0003,30]
[391558364,1760652650131,-151.0,0.0003,30]
[391558365,1760652650140,-151.0,0.0003,30]
[391558366,1760652650148,-241.054873,0.0003,30]
[391558367,1760652650158,-151.0,0.0003,30]
[391558368,1760652650167,-151.0,0.0003,30]
[391558369,1760652650176,-151.368297,0.0003,30]
[391558370,1760652650185,-151.0,0.0003,30]
[391558371,1760652650194,-154.00000014,0.0003,30]
[391558372,1760652650203,-151.0,0.0003,30]
[391558373,1760652650212,-151.0,0.0003,30]
[391558374,1760652650222,-151.0,0.0003,30]
[391558375,1760652650231,-151.0,0.0003,30]
[391558376,1760652650240,-152.298339,0.0003,30]
[391558377,1760652650249,-151.0,0.0003,30]
[391558378,1760652650259,-151.0,0.0003,30]
[391558379,1760652650268,-178.0,0.0003,14]
[391558380,1760652650279,-170.0,0.0003,14]
[391558381,1760652650289,-209.689649,0.0003,30]
[391558382,1760652650298,-209.689649,0.0003,30]
[391558383,1760652650308,-209.689649,0.0003,30]
[391558384,1760652650317,-209.689649,0.0003,30]
[391558385,1760652650326,-151.0,0.0003,30]
[391558386,1760652650336,-200.542752,0.0003,30]
[391558387,1760652650350,-200.542752,0.0003,30]
[391558388,1760652650359,-200.542752,0.0003,30]
[391558389,1760652650368,-200.542752,0.0003,30]
[391558390,1760652650377,-151.0,0.0003,30]
[391558391,1760652650388,-271.751498,0.0003,30]
[391558392,1760652650398,-303.478001,0.0003,30]
[391558393,1760652650408,-303.478001,0.0003,30]
[391558394,1760652650418,-303.478001,0.0003,30]
[391558395,1760652650428,-303.478001,0.0003,30]
[391558396,1760652650438,-206.18902,0.0003,30]
[391558397,1760652650447,-206.18902,0.0003,30]
[391558398,1760652650457,-206.18902,0.0003,30]
[391558399,1760652650466,-206.18902,0.0003,30]
[391558400,1760652650477,-176.806935,0.0003,30]
[391558401,1760652650487,-176.806935,0.0003,30]
[391558402,1760652650495,-176.806935,0.0003,30]
[391558403,1760652650505,-176.806935,0.0003,30]
[391558404,1760652650514,-151.0,0.0003,30]
[391558405,1760652650523,-191.874591,0.0003,30]
[391558406,1760652650533,-151.630488,0.0003,30]
[391558407,1760652650542,-191.874591,0.0003,30]
[391558408,1760652650551,-151.0,0.0003,30]
[391558409,1760652650559,-191.874591,0.0003,30]
[391558410,1760652650568,-191.874591,0.0003,30]
[391558411,1760652650577,-239.400561,0.0003,30]
[391558412,1760652650586,-858.116865,0.0003,30]
[391558413,1760652650595,-151.0,0.0003,30]
[391558414,1760652650604,-858.116865,0.0003,30]
[391558415,1760652650613,-858.116865,0.0003,30]
[391558416,1760652650622,-858.116865,0.0003,30]
[391558417,1760652650631,-572.797798,0.0003,30]
[391558418,1760652650640,-572.797798,0.0003,30]
[391558419,1760652650648,-572.797798,0.0003,30]
[391558420,1760652650658,-572.797798,0.0003,30]
[391558421,1760652650667,-151.0,0.0003,15]
[391558422,1760652650676,-151.0,0.0003,15]
[391558423,1760652650686,-162.957421,0.0003,15]
[391558424,1760652650695,-151.0,0.0003,30]
[391558425,1760652650706,-151.0,0.0003,30]
[391558426,1760652650716,-154.136962,0.0003,30]
[391558427,1760652650728,-151.0,0.0003,30]
[391558428,1760652650737,-151.0,0.0003,30]
[391558429,1760652650746,-151.0,0.0003,30]
[391558430,1760652650755,-175.5599,0.0003,30]